[Event "Late-Titled-Tuesday-Blitz-January-30-2024"]
[Site "Chess.com"]
[Date "2024.01.30"]
[Round "3"]
[White "esrosenberg"]
[Black "GasconJR"]
[Result "1/2-1/2"]
[WhiteElo "2427"]
[BlackElo "2581"]
[TimeControl "180+1"]
[EndTime "14:29:44 PST"]
[Termination "Game drawn by repetition"]

1. c4 {[%clk 0:02:59.6]} 1... e6 {[%clk 0:02:58.6]} 2. g3 {[%clk 0:02:57.3]}
2... d5 {[%clk 0:02:58.8]} 3. Bg2 {[%clk 0:02:57.1]} 3... d4 {[%clk 0:02:59]} 4.
Nf3 {[%clk 0:02:55.9]} 4... Nc6 {[%clk 0:02:59.5]} 5. O-O {[%clk 0:02:55.7]}
5... Bc5 {[%clk 0:02:59.7]} 6. e3 {[%clk 0:02:55.6]} 6... Nge7 {[%clk
0:02:59.3]} 7. exd4 {[%clk 0:02:54.4]} 7... Nxd4 {[%clk 0:02:59.1]} 8. d3 {[%clk
0:02:53.3]} 8... Nec6 {[%clk 0:02:53.7]} 9. Nbd2 {[%clk 0:02:51.6]} 9... a5
{[%clk 0:02:52.5]} 10. Nxd4 {[%clk 0:02:47.8]} 10... Nxd4 {[%clk 0:02:52.1]} 11.
Nb3 {[%clk 0:02:48.1]} 11... Nxb3 {[%clk 0:02:33]} 12. axb3 {[%clk 0:02:44.6]}
12... O-O {[%clk 0:02:33.2]} 13. Be3 {[%clk 0:02:44.3]} 13... Bd4 {[%clk
0:02:13.8]} 14. Qd2 {[%clk 0:02:35.8]} 14... Ra6 {[%clk 0:01:54.4]} 15. Rfe1
{[%clk 0:01:42.6]} 15... c5 {[%clk 0:01:47.2]} 16. Bxd4 {[%clk 0:01:31]} 16...
Qxd4 {[%clk 0:01:39]} 17. Rxa5 {[%clk 0:01:17.7]} 17... Rxa5 {[%clk 0:01:31.9]}
18. Qxa5 {[%clk 0:01:18.6]} 18... Qxb2 {[%clk 0:01:31.1]} 19. Qxc5 {[%clk
0:01:15.3]} 19... Qxb3 {[%clk 0:01:30.5]} 20. d4 {[%clk 0:01:07.1]} 20... Qc3
{[%clk 0:01:29.7]} 21. Re3 {[%clk 0:01:03.7]} 21... Qc1+ {[%clk 0:01:16.4]} 22.
Bf1 {[%clk 0:01:03.8]} 22... Qa1 {[%clk 0:00:55.1]} 23. Qe5 {[%clk 0:00:56.5]}
23... Rd8 {[%clk 0:00:38.8]} 24. d5 {[%clk 0:00:53.5]} 24... Qxe5 {[%clk
0:00:36.8]} 25. Rxe5 {[%clk 0:00:53.4]} 25... exd5 {[%clk 0:00:34.6]} 26. Rxd5
{[%clk 0:00:48.2]} 26... Rxd5 {[%clk 0:00:33.8]} 27. cxd5 {[%clk 0:00:49.1]}
27... Kf8 {[%clk 0:00:34.2]} 28. Bc4 {[%clk 0:00:36.3]} 28... Ke7 {[%clk
0:00:30.9]} 29. f4 {[%clk 0:00:35.8]} 29... Kd6 {[%clk 0:00:31.8]} 30. Kf2
{[%clk 0:00:35.9]} 30... Kc5 {[%clk 0:00:23.9]} 31. Bb3 {[%clk 0:00:35.1]} 31...
f6 {[%clk 0:00:16.8]} 32. Ke3 {[%clk 0:00:32.9]} 32... Bh3 {[%clk 0:00:15.7]}
33. Kf3 {[%clk 0:00:20.3]} 33... f5 {[%clk 0:00:11.1]} 34. Ba2 {[%clk
0:00:15.7]} 34... g6 {[%clk 0:00:11.2]} 35. Bb3 {[%clk 0:00:15.6]} 35... Bf1
{[%clk 0:00:10.9]} 36. d6 {[%clk 0:00:13.9]} 36... Kxd6 {[%clk 0:00:10.4]} 37.
Bg8 {[%clk 0:00:14.6]} 37... h6 {[%clk 0:00:04.1]} 38. Bh7 {[%clk 0:00:14]}
38... b5 {[%clk 0:00:04]} 39. Bxg6 {[%clk 0:00:14.4]} 39... Bd3 {[%clk
0:00:04.4]} 40. Ke3 {[%clk 0:00:14.5]} 40... Be4 {[%clk 0:00:03.7]} 41. Kd4
{[%clk 0:00:13.3]} 41... Ke6 {[%clk 0:00:03]} 42. Bh7 {[%clk 0:00:13.3]} 42...
b4 {[%clk 0:00:03]} 43. Bg8+ {[%clk 0:00:13.5]} 43... Kf6 {[%clk 0:00:03]} 44.
Bb3 {[%clk 0:00:14]} 44... Kg6 {[%clk 0:00:02.2]} 45. Kc5 {[%clk 0:00:14.3]}
45... Kh5 {[%clk 0:00:02.8]} 46. Bd1+ {[%clk 0:00:12.1]} 46... Kg6 {[%clk
0:00:03.1]} 47. Kxb4 {[%clk 0:00:12.5]} 47... h5 {[%clk 0:00:03.9]} 48. Kc5
{[%clk 0:00:12.5]} 48... h4 {[%clk 0:00:04.5]} 49. Kd4 {[%clk 0:00:12.3]} 49...
hxg3 {[%clk 0:00:04.7]} 50. hxg3 {[%clk 0:00:12.4]} 50... Kf6 {[%clk 0:00:05.5]}
51. g4 {[%clk 0:00:11.9]} 51... Bb1 {[%clk 0:00:04.4]} 52. g5+ {[%clk
0:00:12.2]} 52... Kg6 {[%clk 0:00:05]} 53. Ke5 {[%clk 0:00:12.8]} 53... Be4
{[%clk 0:00:04.8]} 54. Bb3 {[%clk 0:00:11.8]} 54... Bb1 {[%clk 0:00:05.1]} 55.
Bd5 {[%clk 0:00:11.3]} 55... Bc2 {[%clk 0:00:04.7]} 56. Bc6 {[%clk 0:00:11.6]}
56... Bb1 {[%clk 0:00:04.9]} 57. Be8+ {[%clk 0:00:12.1]} 57... Kg7 {[%clk
0:00:05.4]} 58. Bd7 {[%clk 0:00:10.1]} 58... Kg6 {[%clk 0:00:05.2]} 59. Be6
{[%clk 0:00:09.9]} 59... Bc2 {[%clk 0:00:05.1]} 60. Bd7 {[%clk 0:00:09.5]} 60...
Bb1 {[%clk 0:00:05.5]} 61. Be8+ {[%clk 0:00:09.8]} 61... Kg7 {[%clk 0:00:06]}
62. g6 {[%clk 0:00:07.4]} 62... Bc2 {[%clk 0:00:06]} 63. Bf7 {[%clk 0:00:06.7]}
63... Bb1 {[%clk 0:00:06]} 64. Be8 {[%clk 0:00:06.3]} 64... Bc2 {[%clk
0:00:06.2]} 65. Ke6 {[%clk 0:00:05.4]} 65... Bb1 {[%clk 0:00:06.2]} 66. Ke7
{[%clk 0:00:05.2]} 66... Bc2 {[%clk 0:00:06.2]} 67. Ke6 {[%clk 0:00:05.7]} 67...
Bb1 {[%clk 0:00:06.4]} 68. Ke5 {[%clk 0:00:06.3]} 1/2-1/2

[Event "Late-Titled-Tuesday-Blitz-January-30-2024"]
[Site "Chess.com"]
[Date "2024.01.30"]
[Round "3"]
[White "elchacal664"]
[Black "Lady_Nika"]
[Result "0-1"]
[WhiteElo "2401"]
[BlackElo "2586"]
[TimeControl "180+1"]
[EndTime "14:29:51 PST"]
[Termination "Lady_Nika won on time"]

1. e4 {[%clk 0:03:00.9]} 1... e6 {[%clk 0:02:59.5]} 2. d3 {[%clk 0:02:56.9]}
2... d5 {[%clk 0:02:59.6]} 3. Nd2 {[%clk 0:02:56.7]} 3... Nf6 {[%clk 0:02:59.9]}
4. Ngf3 {[%clk 0:02:56.3]} 4... c5 {[%clk 0:03:00]} 5. g3 {[%clk 0:02:56.1]}
5... Nc6 {[%clk 0:03:00.4]} 6. Bg2 {[%clk 0:02:56.5]} 6... d4 {[%clk 0:03:00.8]}
7. O-O {[%clk 0:02:56.2]} 7... e5 {[%clk 0:03:01.2]} 8. Nc4 {[%clk 0:02:51.5]}
8... Bd6 {[%clk 0:03:01.7]} 9. a4 {[%clk 0:02:50.4]} 9... Bc7 {[%clk 0:03:01.4]}
10. Nh4 {[%clk 0:02:49.3]} 10... Bg4 {[%clk 0:03:00]} 11. Bf3 {[%clk 0:02:48.3]}
11... Be6 {[%clk 0:02:55.6]} 12. Nf5 {[%clk 0:02:47.4]} 12... Rg8 {[%clk
0:02:48.2]} 13. Bg5 {[%clk 0:02:44.1]} 13... h6 {[%clk 0:02:40.6]} 14. Bd2
{[%clk 0:02:38.3]} 14... Qd7 {[%clk 0:02:38.3]} 15. a5 {[%clk 0:02:35.2]} 15...
a6 {[%clk 0:02:35.6]} 16. Bg2 {[%clk 0:02:33.3]} 16... Bxf5 {[%clk 0:02:27.1]}
17. exf5 {[%clk 0:02:32.9]} 17... Qxf5 {[%clk 0:02:26.2]} 18. f4 {[%clk
0:02:33.3]} 18... exf4 {[%clk 0:02:06.7]} 19. Bxf4 {[%clk 0:02:32.8]} 19... Qd7
{[%clk 0:02:05.3]} 20. Re1+ {[%clk 0:02:30.8]} 20... Kf8 {[%clk 0:01:56]} 21.
Qf3 {[%clk 0:02:21.8]} 21... Bxf4 {[%clk 0:01:36.6]} 22. Qxf4 {[%clk 0:02:21.4]}
22... Re8 {[%clk 0:01:36.3]} 23. Rxe8+ {[%clk 0:02:14.3]} 23... Nxe8 {[%clk
0:01:36.1]} 24. Re1 {[%clk 0:02:12.4]} 24... g5 {[%clk 0:01:34.8]} 25. Qf2
{[%clk 0:01:51.6]} 25... Rg6 {[%clk 0:01:31.6]} 26. Bxc6 {[%clk 0:01:46.7]}
26... Rxc6 {[%clk 0:01:03.3]} 27. Ne5 {[%clk 0:01:45.9]} 27... Qd5 {[%clk
0:00:52]} 28. Qf5 {[%clk 0:01:32.9]} 28... Rd6 {[%clk 0:00:23.6]} 29. Ng6+
{[%clk 0:01:24.5]} 29... Kg7 {[%clk 0:00:19.7]} 30. Ne7 {[%clk 0:01:24.3]} 30...
Qa2 {[%clk 0:00:06.5]} 31. Qf3 {[%clk 0:01:19.4]} 31... Rf6 {[%clk 0:00:06.3]}
32. Nf5+ {[%clk 0:01:13.1]} 32... Kf8 {[%clk 0:00:06.3]} 33. g4 {[%clk
0:00:57.4]} 33... Qxa5 {[%clk 0:00:06.3]} 34. Re2 {[%clk 0:00:48.7]} 34... Ng7
{[%clk 0:00:03.5]} 35. Qxb7 {[%clk 0:00:42.7]} 35... Nxf5 {[%clk 0:00:03.1]} 36.
gxf5 {[%clk 0:00:42.6]} 36... Kg7 {[%clk 0:00:03.3]} 37. Rf2 {[%clk 0:00:39.5]}
37... Qa1+ {[%clk 0:00:03.4]} 38. Kg2 {[%clk 0:00:38.9]} 38... Qd1 {[%clk
0:00:03.7]} 39. Qe4 {[%clk 0:00:37.5]} 39... Qh5 {[%clk 0:00:03.5]} 40. h3
{[%clk 0:00:36.6]} 40... a5 {[%clk 0:00:02.8]} 41. b3 {[%clk 0:00:36.4]} 41...
Qd1 {[%clk 0:00:03]} 42. Qe5 {[%clk 0:00:36]} 42... h5 {[%clk 0:00:03.3]} 43.
Qg3 {[%clk 0:00:35.4]} 43... g4 {[%clk 0:00:03.7]} 44. h4 {[%clk 0:00:35]} 44...
Qc1 {[%clk 0:00:02.3]} 45. Qe5 {[%clk 0:00:31.4]} 45... Qe3 {[%clk 0:00:02.8]}
46. Qxe3 {[%clk 0:00:19.6]} 46... dxe3 {[%clk 0:00:03.7]} 47. Re2 {[%clk
0:00:20.5]} 47... Rxf5 {[%clk 0:00:03.9]} 48. Rxe3 {[%clk 0:00:21.3]} 48... Kf6
{[%clk 0:00:04.1]} 49. Re4 {[%clk 0:00:21]} 49... Re5 {[%clk 0:00:04.3]} 50. Rc4
{[%clk 0:00:19]} 50... Ke6 {[%clk 0:00:04.6]} 51. Kf2 {[%clk 0:00:18]} 51... f5
{[%clk 0:00:04.8]} 52. Kg3 {[%clk 0:00:16.3]} 52... Re3+ {[%clk 0:00:04.6]} 53.
Kf4 {[%clk 0:00:16.4]} 53... Rf3+ {[%clk 0:00:05]} 54. Kg5 {[%clk 0:00:16.4]}
54... g3 {[%clk 0:00:05.4]} 55. Rxc5 {[%clk 0:00:08.5]} 55... g2 {[%clk
0:00:05.7]} 56. Rc6+ {[%clk 0:00:08.7]} 56... Kd5 {[%clk 0:00:06]} 57. Rg6
{[%clk 0:00:06.1]} 57... g1=Q+ {[%clk 0:00:06.2]} 58. Kh6 {[%clk 0:00:05.7]}
58... Rg3 {[%clk 0:00:06.6]} 0-1

[Event "Late-Titled-Tuesday-Blitz-January-30-2024"]
[Site "Chess.com"]
[Date "2024.01.30"]
[Round "3"]
[White "VladimirKramnik"]
[Black "Evgeny81"]
[Result "1/2-1/2"]
[WhiteElo "2936"]
[BlackElo "2718"]
[TimeControl "180+1"]
[EndTime "14:29:53 PST"]
[Termination "Game drawn by repetition"]

1. c4 {[%clk 0:03:00.9]} 1... c6 {[%clk 0:02:59.6]} 2. Nf3 {[%clk 0:02:59.3]}
2... d5 {[%clk 0:02:59.9]} 3. d4 {[%clk 0:02:54]} 3... Nf6 {[%clk 0:02:59.3]} 4.
Nc3 {[%clk 0:02:53.6]} 4... a6 {[%clk 0:02:57.5]} 5. Qc2 {[%clk 0:02:46.4]} 5...
g6 {[%clk 0:02:50.2]} 6. Bg5 {[%clk 0:02:37.9]} 6... dxc4 {[%clk 0:02:45.3]} 7.
e3 {[%clk 0:02:26.4]} 7... b5 {[%clk 0:02:44.4]} 8. a4 {[%clk 0:02:20.1]} 8...
Bb7 {[%clk 0:02:44]} 9. Bxf6 {[%clk 0:02:03.2]} 9... exf6 {[%clk 0:02:44.9]} 10.
Be2 {[%clk 0:02:02.5]} 10... Bg7 {[%clk 0:02:43.2]} 11. Qe4+ {[%clk 0:01:51.9]}
11... Qe7 {[%clk 0:02:39.2]} 12. O-O {[%clk 0:01:37.9]} 12... f5 {[%clk
0:02:32.7]} 13. Qxe7+ {[%clk 0:01:24.6]} 13... Kxe7 {[%clk 0:02:33.6]} 14. Ne1
{[%clk 0:01:19.4]} 14... Nd7 {[%clk 0:02:21.8]} 15. Nc2 {[%clk 0:01:19.8]} 15...
Rhc8 {[%clk 0:02:04.8]} 16. Bf3 {[%clk 0:01:19.9]} 16... Kd6 {[%clk 0:01:55.3]}
17. Rfd1 {[%clk 0:01:18.5]} 17... Kc7 {[%clk 0:01:52]} 18. g3 {[%clk 0:01:15.5]}
18... Nb6 {[%clk 0:01:45.2]} 19. Kg2 {[%clk 0:01:10.8]} 19... Bf8 {[%clk
0:01:39.3]} 20. h4 {[%clk 0:01:05.9]} 20... b4 {[%clk 0:01:34]} 21. a5 {[%clk
0:01:02.3]} 21... Nd5 {[%clk 0:01:27.9]} 22. Na4 {[%clk 0:00:58.9]} 22... Rab8
{[%clk 0:01:15.1]} 23. Nc5 {[%clk 0:00:53.9]} 23... Bxc5 {[%clk 0:01:02.5]} 24.
dxc5 {[%clk 0:00:54.3]} 24... Ba8 {[%clk 0:01:03]} 25. Rd4 {[%clk 0:00:45.1]}
25... c3 {[%clk 0:00:49.5]} 26. b3 {[%clk 0:00:41.9]} 26... Rb5 {[%clk
0:00:46.6]} 27. Bxd5 {[%clk 0:00:37.3]} 27... cxd5 {[%clk 0:00:46.7]} 28. Nxb4
{[%clk 0:00:34.3]} 28... Bb7 {[%clk 0:00:46]} 29. c6 {[%clk 0:00:27.7]} 29...
Bxc6 {[%clk 0:00:43.8]} 30. Rc1 {[%clk 0:00:26.8]} 30... Rxa5 {[%clk 0:00:37.2]}
31. Rxc3 {[%clk 0:00:27.3]} 31... Kb7 {[%clk 0:00:36.6]} 32. Rc1 {[%clk
0:00:20.2]} 32... Rb5 {[%clk 0:00:34.5]} 33. Nd3 {[%clk 0:00:19.2]} 33... Bd7
{[%clk 0:00:30.9]} 34. Rb1 {[%clk 0:00:18.1]} 34... Rc3 {[%clk 0:00:28.8]} 35.
b4 {[%clk 0:00:17.5]} 35... Kb6 {[%clk 0:00:22.5]} 36. Ra1 {[%clk 0:00:16.4]}
36... Rc4 {[%clk 0:00:18.7]} 37. Nc5 {[%clk 0:00:08.2]} 37... Rxd4 {[%clk
0:00:12.2]} 38. exd4 {[%clk 0:00:08.8]} 38... Bc8 {[%clk 0:00:11.7]} 39. Ra4
{[%clk 0:00:08.8]} 39... a5 {[%clk 0:00:09]} 40. bxa5+ {[%clk 0:00:08.1]} 40...
Rxa5 {[%clk 0:00:09.9]} 41. Rxa5 {[%clk 0:00:06.8]} 41... Kxa5 {[%clk
0:00:10.5]} 42. Kf3 {[%clk 0:00:07.1]} 42... Kb4 {[%clk 0:00:09.2]} 43. Ke3
{[%clk 0:00:06.8]} 43... Kc4 {[%clk 0:00:07]} 44. Nd3 {[%clk 0:00:06.9]} 44...
f6 {[%clk 0:00:06.7]} 45. Nf4 {[%clk 0:00:06.9]} 45... Bd7 {[%clk 0:00:05.3]}
46. Nd3 {[%clk 0:00:07]} 46... Bc8 {[%clk 0:00:05]} 47. Nc5 {[%clk 0:00:07]}
47... Kc3 {[%clk 0:00:04.6]} 48. Na4+ {[%clk 0:00:06.1]} 48... Kb4 {[%clk
0:00:04]} 49. Nc5 {[%clk 0:00:04.5]} 49... Kc4 {[%clk 0:00:04.3]} 50. f3 {[%clk
0:00:04.1]} 50... Kb5 {[%clk 0:00:03.2]} 51. Nd3 {[%clk 0:00:03.8]} 51... Kc4
{[%clk 0:00:03.4]} 52. Nf4 {[%clk 0:00:04.1]} 52... Bd7 {[%clk 0:00:03.9]} 53.
Nd3 {[%clk 0:00:04.4]} 53... Bc8 {[%clk 0:00:04]} 54. Nc5 {[%clk 0:00:05.1]}
54... Kb5 {[%clk 0:00:04.2]} 55. Kd3 {[%clk 0:00:04.8]} 55... Kb4 {[%clk
0:00:04.5]} 56. Ke3 {[%clk 0:00:05]} 56... Kc4 {[%clk 0:00:04.8]} 57. Nd3 {[%clk
0:00:04.9]} 57... Kc3 {[%clk 0:00:04.7]} 58. Nf4 {[%clk 0:00:04.7]} 58... Kc4
{[%clk 0:00:05.3]} 59. Ne2 {[%clk 0:00:04.9]} 59... Bd7 {[%clk 0:00:04.8]} 60.
Nf4 {[%clk 0:00:04.3]} 60... Bc8 {[%clk 0:00:04.4]} 61. Ne2 {[%clk 0:00:03.9]}
61... Bd7 {[%clk 0:00:04.8]} 62. Nc1 {[%clk 0:00:04]} 62... Bc8 {[%clk 0:00:05]}
63. Nd3 {[%clk 0:00:04.7]} 63... Bd7 {[%clk 0:00:05]} 64. Nc5 {[%clk 0:00:04.7]}
64... Bc8 {[%clk 0:00:05.6]} 65. Na4 {[%clk 0:00:04.5]} 65... Kb5 {[%clk
0:00:04.9]} 66. Nb2 {[%clk 0:00:03.1]} 66... Kb4 {[%clk 0:00:04.7]} 67. Nd3+
{[%clk 0:00:03.8]} 67... Kc4 {[%clk 0:00:04.8]} 1/2-1/2

[Event "Late-Titled-Tuesday-Blitz-January-30-2024"]
[Site "Chess.com"]
[Date "2024.01.30"]
[Round "3"]
[White "Azerichess"]
[Black "GMG"]
[Result "1-0"]
[WhiteElo "3079"]
[BlackElo "2809"]
[TimeControl "180+1"]
[EndTime "14:29:55 PST"]
[Termination "Azerichess won on time"]

1. d4 {[%clk 0:03:00.9]} 1... f5 {[%clk 0:02:57.1]} 2. c4 {[%clk 0:02:58]} 2...
Nf6 {[%clk 0:02:57]} 3. g3 {[%clk 0:02:56.2]} 3... e6 {[%clk 0:02:57.3]} 4. Bg2
{[%clk 0:02:56.3]} 4... d5 {[%clk 0:02:57.9]} 5. Qc2 {[%clk 0:02:53.1]} 5... c6
{[%clk 0:02:55.7]} 6. Nh3 {[%clk 0:02:53]} 6... Be7 {[%clk 0:02:51.9]} 7. O-O
{[%clk 0:02:53]} 7... O-O {[%clk 0:02:50.1]} 8. Nf4 {[%clk 0:02:43.5]} 8... a5
{[%clk 0:02:31.2]} 9. b3 {[%clk 0:02:43]} 9... a4 {[%clk 0:02:18.9]} 10. bxa4
{[%clk 0:02:37.3]} 10... Qa5 {[%clk 0:02:18.5]} 11. cxd5 {[%clk 0:02:37.1]}
11... exd5 {[%clk 0:02:16.6]} 12. Nc3 {[%clk 0:02:36.7]} 12... Ne4 {[%clk
0:02:13.2]} 13. Bb2 {[%clk 0:02:34]} 13... Nd7 {[%clk 0:01:58.2]} 14. f3 {[%clk
0:02:19]} 14... Nxc3 {[%clk 0:01:53.6]} 15. Bxc3 {[%clk 0:02:19.9]} 15... Qxa4
{[%clk 0:01:54.2]} 16. Qd2 {[%clk 0:02:19.4]} 16... Nb6 {[%clk 0:01:51.7]} 17.
Rfc1 {[%clk 0:02:08.8]} 17... Nc4 {[%clk 0:01:46.1]} 18. Qd3 {[%clk 0:02:08.8]}
18... Bg5 {[%clk 0:01:41.6]} 19. e4 {[%clk 0:01:58.1]} 19... Bxf4 {[%clk
0:01:40.3]} 20. gxf4 {[%clk 0:01:58]} 20... Be6 {[%clk 0:01:35.5]} 21. Re1
{[%clk 0:01:56]} 21... fxe4 {[%clk 0:01:28]} 22. fxe4 {[%clk 0:01:55.8]} 22...
Rxf4 {[%clk 0:01:28.6]} 23. exd5 {[%clk 0:01:48.9]} 23... Bxd5 {[%clk
0:01:29.5]} 24. Bxd5+ {[%clk 0:01:48.8]} 24... cxd5 {[%clk 0:01:30.4]} 25. Re7
{[%clk 0:01:49.2]} 25... Raf8 {[%clk 0:01:23.2]} 26. Qg3 {[%clk 0:01:16.9]}
26... R4f7 {[%clk 0:01:08.2]} 27. Rxf7 {[%clk 0:01:16.6]} 27... Rxf7 {[%clk
0:01:09.1]} 28. Qb8+ {[%clk 0:01:16.7]} 28... Rf8 {[%clk 0:01:09.3]} 29. Qxb7
{[%clk 0:01:17.6]} 29... Ne3 {[%clk 0:01:03.2]} 30. Qe7 {[%clk 0:01:14.7]} 30...
Re8 {[%clk 0:01:00.8]} 31. Qg5 {[%clk 0:01:07]} 31... Qc2 {[%clk 0:00:58.2]} 32.
Be1 {[%clk 0:00:53.8]} 32... Qd3 {[%clk 0:00:40.7]} 33. Bf2 {[%clk 0:00:51.6]}
33... Nf5 {[%clk 0:00:20.6]} 34. a4 {[%clk 0:00:40.7]} 34... Re6 {[%clk
0:00:19.4]} 35. Qd8+ {[%clk 0:00:39.1]} 35... Kf7 {[%clk 0:00:19.2]} 36. Qxd5
{[%clk 0:00:38.9]} 36... Ke7 {[%clk 0:00:09.9]} 37. Qc5+ {[%clk 0:00:33.2]}
37... Ke8 {[%clk 0:00:08.8]} 38. Qb5+ {[%clk 0:00:27.2]} 38... Qxb5 {[%clk
0:00:06.7]} 39. axb5 {[%clk 0:00:28.1]} 39... Rb6 {[%clk 0:00:06.4]} 40. Ra5
{[%clk 0:00:28.4]} 40... Nd6 {[%clk 0:00:06.1]} 41. Ra6 {[%clk 0:00:29]} 41...
Nc8 {[%clk 0:00:01.4]} 42. Rxb6 {[%clk 0:00:27.1]} 42... Nxb6 {[%clk 0:00:02.3]}
43. Kg2 {[%clk 0:00:27.1]} 43... Kd7 {[%clk 0:00:02.6]} 44. Kf3 {[%clk
0:00:27.7]} 44... Nd5 {[%clk 0:00:02.3]} 45. Be1 {[%clk 0:00:22.5]} 45... Nc7
{[%clk 0:00:01.8]} 46. b6 {[%clk 0:00:22.6]} 46... Nd5 {[%clk 0:00:01.9]} 47.
Ba5 {[%clk 0:00:23.3]} 47... Kc6 {[%clk 0:00:01.9]} 48. Ke4 {[%clk 0:00:22.9]}
48... Nxb6 {[%clk 0:00:02.3]} 49. Bxb6 {[%clk 0:00:20.4]} 49... Kxb6 {[%clk
0:00:03.2]} 50. Ke5 {[%clk 0:00:21.2]} 50... Kc7 {[%clk 0:00:02.5]} 51. Ke6
{[%clk 0:00:21.4]} 51... Kd8 {[%clk 0:00:02.4]} 52. Kf7 {[%clk 0:00:19.1]} 52...
g5 {[%clk 0:00:02.1]} 53. Kf6 {[%clk 0:00:18.4]} 53... g4 {[%clk 0:00:02.1]} 54.
Kg5 {[%clk 0:00:18.2]} 54... Kd7 {[%clk 0:00:02.7]} 55. Kxg4 {[%clk 0:00:18.7]}
55... Kd6 {[%clk 0:00:03.3]} 56. Kf4 {[%clk 0:00:19.2]} 56... Kd5 {[%clk
0:00:03.7]} 57. Ke3 {[%clk 0:00:19.7]} 57... h5 {[%clk 0:00:03.8]} 58. h3 {[%clk
0:00:17.6]} 58... h4 {[%clk 0:00:02.8]} 59. Kd3 {[%clk 0:00:17.7]} 59... Kd6
{[%clk 0:00:03.3]} 60. Ke4 {[%clk 0:00:18.2]} 60... Ke6 {[%clk 0:00:03.9]} 61.
Kf4 {[%clk 0:00:16.9]} 61... Kd5 {[%clk 0:00:04.2]} 62. Ke3 {[%clk 0:00:17.5]}
62... Kd6 {[%clk 0:00:03.6]} 63. Kf4 {[%clk 0:00:17.9]} 63... Kd5 {[%clk
0:00:04.2]} 64. Kg4 {[%clk 0:00:18.8]} 64... Kxd4 {[%clk 0:00:04.7]} 65. Kxh4
{[%clk 0:00:19.5]} 65... Ke5 {[%clk 0:00:05.4]} 66. Kg5 {[%clk 0:00:20.1]} 66...
Ke6 {[%clk 0:00:05.7]} 67. Kg6 {[%clk 0:00:20.2]} 67... Ke7 {[%clk 0:00:06]} 68.
Kg7 {[%clk 0:00:20.1]} 1-0

[Event "Late-Titled-Tuesday-Blitz-January-30-2024"]
[Site "Chess.com"]
[Date "2024.01.30"]
[Round "3"]
[White "jinbojinbo"]
[Black "tusplingher"]
[Result "1/2-1/2"]
[WhiteElo "2648"]
[BlackElo "2492"]
[TimeControl "180+1"]
[EndTime "14:29:55 PST"]
[Termination "Game drawn - insufficient material"]

1. Nf3 {[%clk 0:03:00.9]} 1... Nf6 {[%clk 0:02:57.9]} 2. b3 {[%clk 0:02:59.1]}
2... b6 {[%clk 0:02:57.7]} 3. Bb2 {[%clk 0:03:00]} 3... Bb7 {[%clk 0:02:58.3]}
4. c4 {[%clk 0:03:00.2]} 4... c5 {[%clk 0:02:58.1]} 5. e3 {[%clk 0:02:59.9]}
5... e6 {[%clk 0:02:58.2]} 6. d4 {[%clk 0:02:59.8]} 6... d5 {[%clk 0:02:58.6]}
7. Nbd2 {[%clk 0:02:51.8]} 7... Nbd7 {[%clk 0:02:58.4]} 8. Be2 {[%clk
0:02:47.4]} 8... Be7 {[%clk 0:02:58.7]} 9. O-O {[%clk 0:02:40.2]} 9... O-O
{[%clk 0:02:59]} 10. dxc5 {[%clk 0:02:40.4]} 10... Nxc5 {[%clk 0:02:57]} 11. b4
{[%clk 0:02:38.6]} 11... Nce4 {[%clk 0:02:57.1]} 12. a3 {[%clk 0:02:33.6]} 12...
Rc8 {[%clk 0:02:50.3]} 13. Rc1 {[%clk 0:02:29.3]} 13... Nxd2 {[%clk 0:02:44.2]}
14. Nxd2 {[%clk 0:02:28.7]} 14... dxc4 {[%clk 0:02:40.2]} 15. Nxc4 {[%clk
0:02:29.6]} 15... Nd5 {[%clk 0:02:39.5]} 16. Qb3 {[%clk 0:02:24.4]} 16... Bf6
{[%clk 0:02:36.1]} 17. Rfd1 {[%clk 0:02:19]} 17... Bxb2 {[%clk 0:02:34.8]} 18.
Qxb2 {[%clk 0:02:19.9]} 18... Qf6 {[%clk 0:02:34.8]} 19. Qxf6 {[%clk 0:02:15.4]}
19... Nxf6 {[%clk 0:02:33.7]} 20. Nd6 {[%clk 0:02:15.6]} 20... Rxc1 {[%clk
0:02:32.9]} 21. Rxc1 {[%clk 0:02:16.5]} 21... Bd5 {[%clk 0:02:29.2]} 22. Rc7
{[%clk 0:02:16.2]} 22... a5 {[%clk 0:02:18]} 23. Nc8 {[%clk 0:02:02.6]} 23...
axb4 {[%clk 0:01:57.4]} 24. axb4 {[%clk 0:02:03.5]} 24... h6 {[%clk 0:01:48.8]}
25. f3 {[%clk 0:02:00.9]} 25... Kh7 {[%clk 0:01:21.4]} 26. Nxb6 {[%clk
0:01:58.4]} 26... Rb8 {[%clk 0:01:20.4]} 27. Bd3+ {[%clk 0:01:37.8]} 27... Kg8
{[%clk 0:01:18.1]} 28. Nd7 {[%clk 0:01:32.7]} 28... Nxd7 {[%clk 0:01:06.5]} 29.
Rxd7 {[%clk 0:01:33.6]} 29... Bc6 {[%clk 0:00:59.4]} 30. Rd6 {[%clk 0:01:19.8]}
30... Be8 {[%clk 0:00:52.7]} 31. Rd4 {[%clk 0:01:19.5]} 31... e5 {[%clk
0:00:46.2]} 32. Re4 {[%clk 0:01:19.5]} 32... f6 {[%clk 0:00:43.7]} 33. b5 {[%clk
0:01:19.2]} 33... Bg6 {[%clk 0:00:39.7]} 34. Bc4+ {[%clk 0:01:18.6]} 34... Kf8
{[%clk 0:00:37.7]} 35. Rh4 {[%clk 0:01:18.7]} 35... Be8 {[%clk 0:00:26.9]} 36.
Be2 {[%clk 0:01:14.7]} 36... Ke7 {[%clk 0:00:19.7]} 37. Kf2 {[%clk 0:01:13.4]}
37... Kd6 {[%clk 0:00:18.7]} 38. Rg4 {[%clk 0:01:13.1]} 38... g5 {[%clk
0:00:18.5]} 39. Rb4 {[%clk 0:01:13.3]} 39... Kc5 {[%clk 0:00:16.7]} 40. Rb1
{[%clk 0:01:11.6]} 40... Bxb5 {[%clk 0:00:12.1]} 41. f4 {[%clk 0:00:48.7]} 41...
exf4 {[%clk 0:00:08.5]} 42. exf4 {[%clk 0:00:48.1]} 42... Rb7 {[%clk 0:00:06.6]}
43. Bxb5 {[%clk 0:00:33]} 43... Rxb5 {[%clk 0:00:07.5]} 44. Rxb5+ {[%clk
0:00:33.5]} 44... Kxb5 {[%clk 0:00:08.4]} 45. Kf3 {[%clk 0:00:32.5]} 45... Kc5
{[%clk 0:00:08.4]} 46. Ke4 {[%clk 0:00:31.7]} 46... Kd6 {[%clk 0:00:07.6]} 47.
Kf5 {[%clk 0:00:30.8]} 47... Ke7 {[%clk 0:00:05]} 48. Kg6 {[%clk 0:00:28.8]}
48... gxf4 {[%clk 0:00:05.3]} 49. h4 {[%clk 0:00:23.8]} 49... Ke6 {[%clk
0:00:04.2]} 50. h5 {[%clk 0:00:23.3]} 50... f5 {[%clk 0:00:01.8]} 51. Kxh6
{[%clk 0:00:22.1]} 51... Kf6 {[%clk 0:00:02.3]} 52. Kh7 {[%clk 0:00:22.3]} 52...
Kg5 {[%clk 0:00:01.9]} 53. h6 {[%clk 0:00:21.9]} 53... Kg4 {[%clk 0:00:01.9]}
54. Kg6 {[%clk 0:00:22.2]} 54... Kg3 {[%clk 0:00:02.6]} 55. h7 {[%clk
0:00:22.7]} 55... Kxg2 {[%clk 0:00:03.3]} 56. h8=Q {[%clk 0:00:23.1]} 56... f3
{[%clk 0:00:04.1]} 57. Qa8 {[%clk 0:00:22.9]} 57... Kg3 {[%clk 0:00:02.9]} 58.
Kg5 {[%clk 0:00:21.4]} 58... f4 {[%clk 0:00:02.2]} 59. Qa3 {[%clk 0:00:20.2]}
59... Kg2 {[%clk 0:00:02.4]} 60. Kg4 {[%clk 0:00:17.8]} 60... f2 {[%clk
0:00:02.9]} 61. Qf3+ {[%clk 0:00:17.9]} 61... Kg1 {[%clk 0:00:02.1]} 62. Qxf4
{[%clk 0:00:03.9]} 62... f1=Q {[%clk 0:00:02.6]} 63. Qd2 {[%clk 0:00:03.7]}
63... Qf2 {[%clk 0:00:03.2]} 64. Qd1+ {[%clk 0:00:03.5]} 64... Qf1 {[%clk
0:00:03.8]} 65. Qc2 {[%clk 0:00:03.7]} 65... Qg2+ {[%clk 0:00:04.1]} 66. Qxg2+
{[%clk 0:00:03.7]} 66... Kxg2 {[%clk 0:00:05]} 1/2-1/2